fUSD/lending_fUSD_20250514
["ID","MTS","AMOUNT","RATE_DAILY","PERIOD"]
[361035345,1747209163699,-876.56,0.00016712,2]
[361035346,1747209163709,-2140.12,0.00016712,2]
[361035347,1747209163720,-571.96,0.00016712,2]
[361035348,1747209163730,-410.56,0.00016712,2]
[361035349,1747209163739,-892.67,0.00016712,2]
[361035350,1747209163749,-1074.21,0.00016712,2]
[361035351,1747209163759,-507.63,0.00016712,2]
[361035352,1747209163769,-2412.67,0.00016712,2]
[361035353,1747209163781,-400.0,0.00016712,2]
[361035354,1747209163791,-1071.37,0.00016712,2]
[361035355,1747209163801,-585.74,0.00016712,2]
[361035356,1747209163811,-335.29248952,0.00016712,2]
[361035357,1747209163819,-1055.84,0.00016712,2]
[361035358,1747209163829,-3342.19,0.00016712,2]
[361035359,1747209163839,-1011.98,0.00016712,2]
[361035360,1747209163849,-437.7,0.00016712,2]
[361035361,1747209163860,-1569.68,0.00016712,2]
[361035362,1747209163870,-841.38,0.00016712,2]
[361035363,1747209163879,-2138.29,0.00016712,2]
[361035364,1747209163889,-400.03,0.00016712,2]
[361035365,1747209163900,-931.09,0.00016712,2]
[361035366,1747209163910,-799.14,0.00016712,2]
[361035367,1747209163920,-561.99,0.00016712,2]
[361035368,1747209163930,-447.86,0.00016712,2]
[361035369,1747209163940,-1791.98,0.00016712,2]
[361035370,1747209163950,-1506.45,0.00016712,2]
[361035371,1747209163960,-1248.25,0.00016712,2]
[361035372,1747209163970,-500.31,0.00016712,2]
[361035373,1747209163980,-400.0,0.00016712,2]
[361035374,1747209163990,-466.29,0.00016712,2]
[361035375,1747209163999,-559.56,0.00016712,2]
[361035376,1747209164009,-499.83,0.00016712,2]
[361035377,1747209164018,-648.49,0.00016712,2]
[361035378,1747209164028,-735.21,0.00016712,2]
[361035379,1747209164037,-2396.6,0.00016712,2]
[361035380,1747209164047,-488.25,0.00016712,2]
[361035381,1747209164057,-686.74,0.00016712,2]
[361035382,1747209164067,-663.93,0.00016712,2]
[361035383,1747209164077,-400.0,0.00016712,2]
[361035384,1747209164087,-765.05,0.00016712,2]
[361035385,1747209164097,-400.0,0.00016712,2]
[361035386,1747209164108,-837.82,0.00016712,2]
[361035387,1747209164119,-846.38,0.00016712,2]
[361035388,1747209164129,-713.16,0.00016712,2]
[361035389,1747209164138,-544.35,0.00016712,2]
[361035390,1747209164148,-1073.49,0.00016712,2]
[361035391,1747209164157,-452.73,0.00016712,2]
[361035392,1747209164167,-610.73,0.00016712,2]
[361035393,1747209164177,-1075.48,0.00016712,2]
[361035394,1747209164187,-223.43049716,0.00016712,2]
[361035395,1747209164197,-442.29,0.00016712,2]
[361035396,1747209164207,-1807.34,0.00016712,2]
[361035397,1747209164217,-561.75,0.00016712,2]
[361035398,1747209164227,-546.56,0.00016712,2]
[361035399,1747209164236,-504.1,0.00016712,2]
[361035400,1747209164246,-690.43,0.00016712,2]
[361035401,1747209164255,-416.24,0.00016712,2]
[361035402,1747209164265,-402.6,0.00016712,2]
[361035403,1747209164275,-1113.76,0.00016712,2]
[361035404,1747209164284,-1405.65,0.00016712,2]
[361035405,1747209164294,-468.31,0.00016712,2]
[361035406,1747209164304,-1001.39,0.00016712,2]
[361035407,1747209164313,-665.02,0.00016712,2]
[361035408,1747209164323,-777.85,0.00016712,2]
[361035409,1747209164334,-2209.78,0.00016712,2]
[361035410,1747209164344,-542.27,0.00016712,2]
[361035411,1747209164354,-400.0,0.00016712,2]
[361035412,1747209164364,-400.0,0.00016712,2]
[361035413,1747209164374,-1048.34,0.00016712,2]
[361035414,1747209164387,-1451.38,0.00016712,2]
[361035415,1747209164397,-619.23,0.00016712,2]
[361035416,1747209164407,-845.06,0.00016712,2]
[361035417,1747209164416,-1320.89,0.00016712,2]
[361035418,1747209164426,-666.66,0.00016712,2]
[361035419,1747209164436,-2336.68,0.00016712,2]
[361035420,1747209164445,-663.81,0.00016712,2]
[361035421,1747209164456,-249.6586847,0.00016712,2]
[361035422,1747209164466,-400.0,0.00016712,2]
[361035423,1747209164476,-541.3,0.00016712,2]
[361035424,1747209164485,-400.0,0.00016712,2]
[361035425,1747209164495,-1134.08,0.00016712,2]
[361035426,1747209164504,-445.33,0.00016712,2]
[361035427,1747209164513,-1257.84,0.00016712,2]
[361035428,1747209164523,-575.36,0.00016712,2]
[361035429,1747209164533,-1007.26,0.00016712,2]
[361035430,1747209164542,-400.0,0.00016712,2]
[361035431,1747209164552,-659.39,0.00016712,2]
[361035432,1747209164561,-1204.75,0.00016712,2]
[361035433,1747209164571,-400.98,0.00016712,2]
[361035434,1747209164581,-906.35,0.00016712,2]
[361035435,1747209164591,-1524.33,0.00016712,2]
[361035436,1747209164600,-466.88,0.00016712,2]
[361035437,1747209164609,-774.55,0.00016712,2]
[361035438,1747209164619,-873.16,0.00016712,2]
[361035439,1747209164630,-4342.01,0.00016712,2]
[361035440,1747209164639,-523.37,0.00016712,2]
[361035441,1747209164649,-352.56,0.00016712,2]
[361035442,1747209164659,-3290.66,0.00016712,2]
[361035443,1747209164669,-620.73,0.00016712,2]
[361035444,1747209164679,-1318.63,0.00016712,2]
[361035445,1747209164689,-508.76719998,0.00016712,2]
[361035446,1747209164698,-794.74,0.00016712,2]
[361035447,1747209164708,-496.52,0.00016712,2]
[361035448,1747209164718,-903.19,0.00016712,2]
[361035449,1747209164728,-824.62,0.00016712,2]
[361035450,1747209164738,-1186.62,0.00016712,2]
[361035451,1747209164748,-525.47,0.00016712,2]
[361035452,1747209164758,-992.09,0.00016712,2]
[361035453,1747209164768,-1186.0,0.00016712,2]
[361035454,1747209164779,-507.48,0.00016712,2]
[361035455,1747209164789,-871.03,0.00016712,2]
[361035456,1747209164798,-8303.1,0.00016712,2]
[361035457,1747209164808,-2394.97,0.00016712,2]
[361035458,1747209164820,-635.51,0.00016712,2]
[361035459,1747209164830,-635.86,0.00016712,2]
[361035460,1747209164840,-762.97,0.00016712,2]
[361035461,1747209164849,-483.25,0.00016712,2]
[361035462,1747209164859,-396.784763,0.00016712,2]
[361035463,1747209164869,-539.78,0.00016712,2]
[361035464,1747209164878,-566.07,0.00016712,2]
[361035465,1747209164888,-400.0,0.00016712,2]
[361035466,1747209164898,-3884.54,0.00016712,2]
[361035467,1747209164908,-9332.17,0.00016712,2]
[361035468,1747209164918,-400.0,0.00016712,2]
[361035469,1747209164927,-521.21,0.00016712,2]
[361035470,1747209164938,-1359.75,0.00016712,2]
[361035471,1747209164947,-1804.54,0.00016712,2]
[361035472,1747209164957,-3867.76,0.00016712,2]
[361035473,1747209164966,-1228.35,0.00016712,2]
[361035474,1747209164977,-454.4,0.00016712,2]
[361035475,1747209164987,-400.0,0.00016712,2]
[361035476,1747209164997,-470.84,0.00016712,2]
[361035477,1747209165007,-451.23,0.00016712,2]
[361035478,1747209165017,-1518.64,0.00016712,2]
[361035479,1747209165026,-3045.01,0.00016712,2]
[361035480,1747209165036,-3381.56,0.00016712,2]
[361035481,1747209165046,-7510.59,0.00016712,2]
[361035482,1747209165055,-983.94,0.00016712,2]
[361035483,1747209165065,-480.02,0.00016712,2]
[361035484,1747209165074,-616.03,0.00016712,2]
[361035485,1747209165083,-585.46,0.00016712,2]
[361035486,1747209165093,-1727.32,0.00016712,2]
[361035487,1747209165102,-824.11,0.00016712,2]
[361035488,1747209165111,-1174.5,0.00016712,2]
[361035489,1747209165121,-400.0,0.00016712,2]
[361035490,1747209165131,-901.12,0.00016712,2]
[361035491,1747209165142,-465.08,0.00016712,2]
[361035492,1747209165152,-591.73,0.00016712,2]
[361035493,1747209165162,-1658.78,0.00016712,2]
[361035494,1747209165172,-700.75,0.00016712,2]
[361035495,1747209165182,-975.74,0.00016712,2]
[361035496,1747209165192,-2190.3,0.00016712,2]
[361035497,1747209165202,-803.12,0.00016712,2]
[361035498,1747209165212,-1386.9,0.00016712,2]
[361035499,1747209165222,-485.56,0.00016712,2]
[361035500,1747209165231,-1242.02,0.00016712,2]
[361035501,1747209165241,-790.06,0.00016712,2]
[361035502,1747209165251,-1050.16,0.00016712,2]
[361035503,1747209165262,-21204.56,0.00016712,2]
[361035504,1747209165272,-1025.65,0.00016712,2]
[361035505,1747209165285,-462.47,0.00016712,2]
[361035506,1747209165295,-489.88,0.00016712,2]
[361035507,1747209165306,-1903.72,0.00016712,2]
[361035508,1747209165316,-903.36,0.00016712,2]
[361035509,1747209165326,-433.44,0.00016712,2]
[361035510,1747209165336,-460.59,0.00016712,2]
[361035511,1747209165345,-2297.07,0.00016712,2]
[361035512,1747209165355,-1352.46,0.00016712,2]
[361035513,1747209165364,-713.5,0.00016712,2]
[361035514,1747209165374,-5802.65,0.00016712,2]
[361035515,1747209165387,-1158.53,0.00016712,2]
[361035516,1747209165397,-1266.9,0.00016712,2]
[361035517,1747209165406,-434.56,0.00016712,2]
[361035518,1747209165416,-1010.68,0.00016712,2]
[361035519,1747209165426,-484.69,0.00016712,2]
[361035520,1747209165436,-1095.0,0.00016712,2]
[361035521,1747209165445,-1932.75,0.00016712,2]
[361035522,1747209165648,-435.72,0.00016712,2]
[361035523,1747209165687,-1315.66,0.00016712,2]
[361035524,1747209165697,-457.59,0.00016712,2]
[361035525,1747209165707,-496.1,0.00016712,2]
[361035526,1747209165717,-5005.62,0.00016712,2]
[361035527,1747209165728,-459.36,0.00016712,2]
[361035528,1747209165737,-814.19,0.00016712,2]
[361035529,1747209165747,-615.67,0.00016712,2]
[361035530,1747209165757,-4200.08,0.00016712,2]
[361035531,1747209165766,-402.79,0.00016712,2]
[361035532,1747209165776,-1129.39,0.00016712,2]
[361035533,1747209165786,-695.95,0.00016712,2]
[361035534,1747209165796,-558.35,0.00016712,2]
[361035535,1747209165806,-900.7,0.00016712,2]
[361035536,1747209165815,-2565.38,0.00016712,2]
[361035537,1747209165824,-1206.83,0.00016712,2]
[361035538,1747209165834,-354.24489179,0.00016712,2]
[361035539,1747209165843,-905.95,0.00016712,2]
[361035540,1747209165852,-704.13,0.00016712,2]
[361035541,1747209165862,-1026.15,0.00016712,2]
[361035542,1747209165871,-926.7,0.00016712,2]
[361035543,1747209165882,-720.88,0.00016712,2]
[361035544,1747209165892,-461.69,0.00016712,2]
[361035545,1747209165902,-828.79,0.00016712,2]
[361035546,1747209165911,-696.91,0.00016712,2]
[361035547,1747209165921,-2110.67,0.00016712,2]
[361035548,1747209165931,-540.58,0.00016712,2]
[361035549,1747209165940,-1784.16,0.00016712,2]
[361035550,1747209165950,-1232.7,0.00016712,2]
[361035551,1747209165959,-455.35945488,0.00016712,2]
[361035552,1747209165968,-400.0,0.00016712,2]
[361035553,1747209165978,-1246.63,0.00016712,2]
[361035554,1747209165987,-1031.46,0.00016712,2]
[361035555,1747209165997,-915.16,0.00016712,2]
[361035556,1747209166006,-614.08,0.00016712,2]
[361035557,1747209166015,-415.13,0.00016712,2]
[361035558,1747209166026,-400.0,0.00016712,2]
[361035559,1747209166035,-8117.6,0.00016712,2]
[361035560,1747209166045,-1273.28,0.00016712,2]
[361035561,1747209166054,-400.0,0.00016712,2]
[361035562,1747209166063,-2424.58,0.00016712,2]
[361035563,1747209166073,-447.54,0.00016712,2]
[361035564,1747209166082,-723.09,0.00016712,2]
[361035565,1747209166091,-1958.39,0.00016712,2]
[361035566,1747209166100,-2526.26,0.00016712,2]
[361035567,1747209166111,-422.1,0.00016712,2]
[361035568,1747209166121,-2914.11,0.00016712,2]
[361035569,1747209166131,-803.6,0.00016712,2]
[361035570,1747209166141,-8091.9,0.00016712,2]
[361035571,1747209166151,-599.26,0.00016712,2]
[361035572,1747209166160,-905.05,0.00016712,2]
[361035573,1747209166169,-805.31,0.00016712,2]
[361035574,1747209166178,-1722.0,0.00016712,2]
[361035575,1747209166187,-981.33,0.00016712,2]
[361035576,1747209166197,-223.44,0.00016712,2]
[361035577,1747209166207,-512.0,0.0001684,2]
[361035578,1747209166216,-442.8516722,0.00016946,2]
[361035579,1747209166226,-528.13,0.00016985,2]
[361035580,1747209166235,-816.27,0.00016985,2]
[361035581,1747209166245,-679.38,0.00016985,2]
[361035582,1747209166255,-151.0,0.00016986,2]
[361035583,1747209166264,-151.0,0.00016986,2]
[361035584,1747209166273,-151.0,0.00016986,2]
[361035585,1747209166283,-219.948627,0.00016986,2]
[361035586,1747209166293,-151.0,0.00016986,2]
[361035587,1747209166303,-151.0,0.00016986,2]
[361035588,1747209166313,-151.0,0.00016986,2]
[361035589,1747209166323,-151.0,0.00016986,2]
[361035590,1747209166333,-151.0,0.00016986,2]
[361035591,1747209166344,-151.0,0.00016986,2]
[361035592,1747209166355,-182.628049,0.00016986,2]
[361035593,1747209166365,-703.18,0.00016986,2]
[361035594,1747209166376,-596.11,0.00016986,2]
[361035595,1747209166391,-737.65,0.00016986,2]
[361035596,1747209166404,-711.57,0.00016986,2]
[361035597,1747209166414,-573.9,0.00016986,2]
[361035598,1747209166425,-672.9,0.00016986,2]
[361035599,1747209166435,-460.32,0.00016986,2]
[361035600,1747209166445,-939.06,0.00016986,2]
[361035601,1747209166456,-436.72,0.00016986,2]
[361035602,1747209166467,-1236.03,0.00016986,2]
[361035603,1747209166476,-882.64,0.00016986,2]
[361035604,1747209166486,-483.18,0.00016986,2]
[361035605,1747209166496,-436.42147237,0.00016986,2]
[361035606,1747209166506,-479.52,0.00016986,2]
[361035607,1747209166516,-634.51,0.00016986,2]
[361035608,1747209166525,-435.37,0.00016986,2]
[361035609,1747209166535,-596.16,0.00016986,2]
[361035610,1747209166546,-494.69,0.00016986,2]
[361035611,1747209166556,-599.12,0.00016986,2]
[361035612,1747209166566,-1062.41,0.00016986,2]
[361035613,1747209166577,-1179.96,0.00016986,2]
[361035614,1747209166587,-450.9,0.00016986,2]
[361035615,1747209166597,-884.53,0.00016986,2]
[361035616,1747209166605,-1027.84,0.00016986,2]
[361035617,1747209166613,-1395.43,0.00016986,2]
[361035618,1747209166623,-543.81,0.00016986,2]
[361035619,1747209166633,-688.09,0.00016986,2]
[361035620,1747209166643,-540.49,0.00016986,2]
[361035621,1747209166653,-545.09,0.00016986,2]
[361035622,1747209166664,-1082.93,0.00016986,2]
[361035623,1747209166674,-476.99,0.00016986,2]
[361035624,1747209166683,-502.4,0.00016986,2]
[361035625,1747209166693,-518.03,0.00016986,2]
[361035626,1747209166703,-2119.41,0.00016986,2]
[361035627,1747209166713,-528.83,0.00016986,2]
[361035628,1747209166723,-1034.94,0.00016986,2]
[361035629,1747209166733,-521.6,0.00016986,2]
[361035630,1747209166743,-1089.67,0.00016986,2]
[361035631,1747209166753,-833.6,0.00016986,2]
[361035632,1747209166763,-855.81,0.00016986,2]
[361035633,1747209166773,-649.48,0.00016986,2]
[361035634,1747209166785,-662.78,0.00016986,2]
[361035635,1747209166795,-1112.52,0.00016986,2]
[361035636,1747209166805,-450.15,0.00016986,2]
[361035637,1747209166815,-670.7,0.00016986,2]
[361035638,1747209166825,-665.82,0.00016986,2]
[361035639,1747209166834,-936.51,0.00016986,2]
[361035640,1747209166844,-1073.27,0.00016986,2]
[361035641,1747209166853,-1216.82,0.00016986,2]
[361035642,1747209166863,-909.1,0.00016986,2]
[361035643,1747209166872,-1630.94,0.00016986,2]
[361035644,1747209166882,-400.0,0.00016986,2]
[361035645,1747209166892,-565.83,0.00016986,2]
[361035646,1747209166902,-1329.57,0.00016986,2]
[361035647,1747209166912,-1847.25,0.00016986,2]
[361035648,1747209166922,-400.0,0.00016986,2]
[361035649,1747209166932,-422.51,0.00016986,2]
[361035650,1747209166941,-876.56,0.00016986,2]
[361035651,1747209166951,-2140.12,0.00016986,2]
[361035652,1747209166961,-571.96,0.00016986,2]
[361035653,1747209166971,-410.56,0.00016986,2]
[361035654,1747209166980,-892.67,0.00016986,2]
[361035655,1747209166991,-1074.21,0.00016986,2]
[361035656,1747209167001,-507.63,0.00016986,2]
[361035657,1747209167011,-2412.67,0.00016986,2]
[361035658,1747209167021,-400.0,0.00016986,2]
[361035659,1747209167032,-1071.37,0.00016986,2]
[361035660,1747209167042,-585.74,0.00016986,2]
[361035661,1747209167051,-1055.84,0.00016986,2]
[361035662,1747209167061,-3342.19,0.00016986,2]
[361035663,1747209167071,-1011.98,0.00016986,2]
[361035664,1747209167081,-437.7,0.00016986,2]
[361035665,1747209167091,-1569.68,0.00016986,2]
[361035666,1747209167101,-841.38,0.00016986,2]
[361035667,1747209167111,-2138.29,0.00016986,2]
[361035668,1747209167121,-400.03,0.00016986,2]
[361035669,1747209167131,-931.09,0.00016986,2]
[361035670,1747209167141,-799.14,0.00016986,2]
[361035671,1747209167151,-561.99,0.00016986,2]
[361035672,1747209167160,-447.86,0.00016986,2]
[361035673,1747209167170,-1791.98,0.00016986,2]
[361035674,1747209167180,-1506.45,0.00016986,2]
[361035675,1747209167190,-1248.25,0.00016986,2]
[361035676,1747209167199,-500.31,0.00016986,2]
[361035677,1747209167209,-520.50592524,0.00016986,2]
[361035678,1747209167219,-466.29,0.00016986,2]
[361035679,1747209167229,-559.56,0.00016986,2]
[361035680,1747209167239,-499.83,0.00016986,2]
[361035681,1747209167251,-648.49,0.00016986,2]
[361035682,1747209167261,-735.21,0.00016986,2]
[361035683,1747209167272,-2396.6,0.00016986,2]
[361035684,1747209167287,-488.25,0.00016986,2]
[361035685,1747209167297,-686.74,0.00016986,2]
[361035686,1747209167307,-663.93,0.00016986,2]
[361035687,1747209167317,-410.81989057,0.00016986,2]
[361035688,1747209167327,-765.05,0.00016986,2]
[361035689,1747209167338,-400.0,0.00016986,2]
[361035690,1747209167347,-837.82,0.00016986,2]
[361035691,1747209167358,-846.38,0.00016986,2]
[361035692,1747209167367,-713.16,0.00016986,2]
[361035693,1747209167377,-544.35,0.00016986,2]
[361035694,1747209167391,-1073.49,0.00016986,2]
[361035695,1747209167401,-452.73,0.00016986,2]
[361035696,1747209167411,-610.73,0.00016986,2]
[361035697,1747209167422,-1075.48,0.00016986,2]
[361035698,1747209167431,-442.29,0.00016986,2]
[361035699,1747209167442,-1807.34,0.00016986,2]
[361035700,1747209167452,-561.75,0.00016986,2]
[361035701,1747209167463,-546.56,0.00016986,2]
[361035702,1747209167473,-504.1,0.00016986,2]
[361035703,1747209167483,-690.43,0.00016986,2]
[361035704,1747209167493,-416.24,0.00016986,2]
[361035705,1747209167504,-402.6,0.00016986,2]
[361035706,1747209167513,-1113.76,0.00016986,2]
[361035707,1747209167524,-1405.65,0.00016986,2]
[361035708,1747209167537,-468.31,0.00016986,2]
[361035709,1747209167547,-1001.39,0.00016986,2]
[361035710,1747209167556,-665.02,0.00016986,2]
[361035711,1747209167566,-777.85,0.00016986,2]
[361035712,1747209167582,-2209.78,0.00016986,2]
[361035713,1747209167593,-542.27,0.00016986,2]
[361035714,1747209167603,-544.32182271,0.00016986,2]
[361035715,1747209167614,-400.0,0.00016986,2]
[361035716,1747209167625,-1048.34,0.00016986,2]
[361035717,1747209167633,-1451.38,0.00016986,2]
[361035718,1747209167641,-619.23,0.00016986,2]
[361035719,1747209167651,-845.06,0.00016986,2]
[361035720,1747209167662,-1320.89,0.00016986,2]
[361035721,1747209167672,-666.66,0.00016986,2]
[361035722,1747209167682,-2336.68,0.00016986,2]
[361035723,1747209167693,-663.81,0.00016986,2]
[361035724,1747209167703,-500.8988338,0.00016986,2]
[361035725,1747209167714,-541.3,0.00016986,2]
[361035726,1747209167725,-400.0,0.00016986,2]
[361035727,1747209167736,-1134.08,0.00016986,2]
[361035728,1747209167745,-445.33,0.00016986,2]
[361035729,1747209167756,-1257.84,0.00016986,2]
[361035730,1747209167765,-575.36,0.00016986,2]
[361035731,1747209167778,-1007.26,0.00016986,2]
[361035732,1747209167788,-400.0,0.00016986,2]
[361035733,1747209167798,-659.39,0.00016986,2]
[361035734,1747209167808,-1204.75,0.00016986,2]
[361035735,1747209167819,-400.98,0.00016986,2]
[361035736,1747209167829,-906.35,0.00016986,2]
[361035737,1747209167839,-1524.33,0.00016986,2]
[361035738,1747209167850,-466.88,0.00016986,2]
[361035739,1747209167861,-774.55,0.00016986,2]
[361035740,1747209167871,-873.16,0.00016986,2]
[361035741,1747209167881,-4342.01,0.00016986,2]
[361035742,1747209167891,-523.37,0.00016986,2]
[361035743,1747209167901,-352.56,0.00016986,2]
[361035744,1747209167911,-3290.66,0.00016986,2]
[361035745,1747209167921,-620.73,0.00016986,2]
[361035746,1747209167931,-1318.63,0.00016986,2]
[361035747,1747209167940,-794.74,0.00016986,2]
[361035748,1747209167950,-496.52,0.00016986,2]
[361035749,1747209167959,-903.19,0.00016986,2]
[361035750,1747209167969,-824.62,0.00016986,2]
[361035751,1747209167980,-1186.62,0.00016986,2]
[361035752,1747209167990,-525.47,0.00016986,2]
[361035753,1747209167999,-992.09,0.00016986,2]
[361035754,1747209168009,-1186.0,0.00016986,2]
[361035755,1747209168019,-507.48,0.00016986,2]
[361035756,1747209168030,-871.03,0.00016986,2]
[361035757,1747209168040,-8303.1,0.00016986,2]
[361035758,1747209168051,-2394.97,0.00016986,2]
[361035759,1747209168060,-635.51,0.00016986,2]
[361035760,1747209168071,-635.86,0.00016986,2]
[361035761,1747209168080,-483.25,0.00016986,2]
[361035762,1747209168090,-762.97,0.00016986,2]
[361035763,1747209168099,-539.78,0.00016986,2]
[361035764,1747209168109,-566.07,0.00016986,2]
[361035765,1747209168119,-158.34968936,0.00016986,2]
[361035766,1747209168129,-3884.54,0.00016986,2]
[361035767,1747209168140,-9332.17,0.00016986,2]
[361035768,1747209168151,-175.05871423,0.00016986,2]
[361035769,1747209168162,-521.21,0.00016986,2]
[361035770,1747209168173,-1359.75,0.00016986,2]
[361035771,1747209168183,-1804.54,0.00016986,2]
[361035772,1747209168284,-3867.76,0.00016986,2]
[361035773,1747209168295,-1228.35,0.00016986,2]
[361035774,1747209168305,-454.4,0.00016986,2]
[361035775,1747209168320,-163.09601599,0.00016986,2]
[361035776,1747209168330,-470.84,0.00016986,2]
[361035777,1747209168340,-451.23,0.00016986,2]
[361035778,1747209168351,-1518.64,0.00016986,2]
[361035779,1747209168361,-3045.01,0.00016986,2]
[361035780,1747209168372,-3381.56,0.00016986,2]
[361035781,1747209168385,-7510.59,0.00016986,2]
[361035782,1747209168395,-983.94,0.00016986,2]
[361035783,1747209168404,-480.02,0.00016986,2]
[361035784,1747209168414,-616.03,0.00016986,2]
[361035785,1747209168423,-585.46,0.00016986,2]
[361035786,1747209168434,-1727.32,0.00016986,2]
[361035787,1747209168444,-824.11,0.00016986,2]
[361035788,1747209168458,-1174.5,0.00016986,2]
[361035789,1747209168468,-400.0,0.00016986,2]
[361035790,1747209168478,-901.12,0.00016986,2]
[361035791,1747209168489,-465.08,0.00016986,2]
[361035792,1747209168499,-591.73,0.00016986,2]
[361035793,1747209168508,-1658.78,0.00016986,2]
[361035794,1747209168519,-700.75,0.00016986,2]
[361035795,1747209168532,-975.74,0.00016986,2]
[361035796,1747209168542,-2190.3,0.00016986,2]
[361035797,1747209168552,-803.12,0.00016986,2]
[361035798,1747209168561,-1386.9,0.00016986,2]
[361035799,1747209168571,-485.56,0.00016986,2]
[361035800,1747209168582,-1242.02,0.00016986,2]
[361035801,1747209168592,-790.06,0.00016986,2]
[361035802,1747209168603,-1050.16,0.00016986,2]
[361035803,1747209168614,-21204.56,0.00016986,2]
[361035804,1747209168625,-1025.65,0.00016986,2]
[361035805,1747209168636,-462.47,0.00016986,2]
[361035806,1747209168646,-489.88,0.00016986,2]
[361035807,1747209168657,-1903.72,0.00016986,2]
[361035808,1747209168667,-903.36,0.00016986,2]
[361035809,1747209168678,-433.44,0.00016986,2]
[361035810,1747209168689,-460.59,0.00016986,2]
[361035811,1747209168700,-2297.07,0.00016986,2]
[361035812,1747209168710,-1352.46,0.00016986,2]
[361035813,1747209168721,-713.5,0.00016986,2]
[361035814,1747209168733,-5802.65,0.00016986,2]
[361035815,1747209168744,-1158.53,0.00016986,2]
[361035816,1747209168756,-1266.9,0.00016986,2]
[361035817,1747209168767,-434.56,0.00016986,2]
[361035818,1747209168780,-1010.68,0.00016986,2]
[361035819,1747209168790,-484.69,0.00016986,2]
[361035820,1747209168800,-1095.0,0.00016986,2]
[361035821,1747209168810,-1932.75,0.00016986,2]
[361035822,1747209168820,-435.72,0.00016986,2]
[361035823,1747209168831,-1315.66,0.00016986,2]
[361035824,1747209168842,-457.59,0.00016986,2]
[361035825,1747209168853,-496.1,0.00016986,2]
[361035826,1747209168863,-459.36,0.00016986,2]
[361035827,1747209168874,-5005.62,0.00016986,2]
[361035828,1747209168885,-814.19,0.00016986,2]
[361035829,1747209168895,-615.67,0.00016986,2]
[361035830,1747209168905,-4200.08,0.00016986,2]
[361035831,1747209168915,-402.79,0.00016986,2]
[361035832,1747209168924,-1129.39,0.00016986,2]
[361035833,1747209168934,-695.95,0.00016986,2]
[361035834,1747209168945,-558.35,0.00016986,2]
[361035835,1747209168956,-900.7,0.00016986,2]
[361035836,1747209168969,-2565.38,0.00016986,2]
[361035837,1747209168980,-1206.83,0.00016986,2]
[361035838,1747209168991,-905.95,0.00016986,2]
[361035839,1747209169004,-704.13,0.00016986,2]
[361035840,1747209169015,-1026.15,0.00016986,2]
[361035841,1747209169030,-926.7,0.00016986,2]
[361035842,1747209169042,-720.88,0.00016986,2]
[361035843,1747209169053,-461.69,0.00016986,2]
[361035844,1747209169066,-828.79,0.00016986,2]